Cogmind - Beta 12 @@@ ROGUE MODE // 2023.03.27 @ 00:03:44 Player: Palikka Result: Destroyed by X-87 Electro with Compact HERF Cannon Performance ------------- Evolutions (9) 4500 Regions Visited (24) 4800 Robots Destroyed (400) 2000 Value Destroyed (17494) 17494 Prototype IDs (63) 1260 Alien Tech Used (1) 200 Bonus (4908) 4908 TOTAL SCORE: 35162 Bonus ------- High Alert Combat Kills 2680 Follower Combat Kills 1226 Aligned with FarCom 300 Met Warlord at Base 500 MAIN.C Attacked Warlord 500 Warlord Defense Kills 340 Built Enhanced Grunts 300 Met R17 at Cetus 500 Friendly Fire -1438 Cogmind --------- Core Integrity 0/1600 Matter 300/300 Energy 100/100 System Corruption 28% Temperature Cool (9) Movement Core (50) Location -1/Access Parts ------- > --- POWER (3) -------- (None) > --- PROPULSION (7) --- (None) > --- UTILITY (11) ----- (None) > --- WEAPON (4) ------- (None) > --- INVENTORY (5) ---- Vortex Rail (25) Heavy Gauss Cannon Heavy Gauss Cannon Graviton Cannon Fusion Bomb Launcher Peak State ------------ > --- POWER ------------ Antimatter Reactor Light Quantum Reactor Light Quantum Reactor > --- PROPULSION ------- Advanced Myomer Leg Biometal Leg Biometal Leg Biometal Leg Centrium Leg Experimental Biometal Leg Experimental Biometal Leg > --- UTILITY ---------- Advanced Heat Sink Advanced Heat Sink Advanced Heat Sink Advanced Cooling System Large Storage Unit Experimental Signal Interpreter Advanced Targeting Computer Advanced Targeting Computer Experimental Core Analyzer Advanced Transmission Jammer Advanced Shield Generator > --- WEAPON ----------- Enhanced Nova Cannon KE Penetrator Advanced KE Penetrator Advanced KE Penetrator > --- INVENTORY -------- Light Quantum Reactor Myomer Leg Biometal Leg Centrium Leg Advanced Shield Generator Quantum Rifle Vortex Rail Long-range Phase Cannon Enhanced Nova Cannon Railgun Heavy Gauss Cannon Heavy Gauss Cannon Graviton Cannon Graviton Cannon Fusion Bomb Launcher [Rating: 188] Favorites ----------- Power Micro Fission Core Engine Heavy Deuterium Engine Power Core Micro Fission Core Reactor Quantum Reactor Propulsion Light Treads Treads Light Treads Leg Myomer Leg Wheel Armored Huge Wheel Hover Unit Gravmag Array Flight Unit Field Propulsion Drive Utility Experimental Core Analyzer Device Advanced Heat Sink Storage Large Storage Unit Processor Experimental Core Analyzer Hackware Experimental Hacking Suite Protection Hardened Light Armor Plating Weapon Improved Assault Rifle Energy Gun Lightning Gun Energy Cannon Heavy Phase Cannon Ballistic Gun Improved Assault Rifle Ballistic Cannon Enhanced Gauss Cannon Launcher Precision Rocket Launcher Impact Weapon Powered Hammer Build | -11 -10 -10 -9 -9 -9 -8 -8 -7 -7 -7 -7 -6 -6 -5 -5 -5 -5 -4 -4 -4 -4 -3 -2 -1 ------- Run | Jun Mat Min Mat Min Exi Min Mat Fac Low Low Zio Pro Fac Fac Upp Upp War Pro Fac Ext Cet Res Res Acc Slots Evolved 18 | . . . 2 . . . 2 2 . . . . 2 2 . . . . 2 . . 2 2 2 Power 2 | . . . . . . . . . . . . . . 1 . . . . . . . 1 . . Propulsion 5 | . . . 1 . . . 1 . . . . . 1 1 . . . . 1 . . . . . Utility 9 | . . . 1 . . . . 2 . . . . 1 . . . . . 1 . . 1 1 2 Weapon 2 | . . . . . . . 1 . . . . . . . . . . . . . . . 1 . Parts Attached 490 | 6 19 1 52 4 5 6 21 36 3 . 12 3 25 44 3 2 16 13 25 56 19 23 77 19 Power 51 | 1 2 . 5 . . 1 2 4 . . 1 . . 6 . . 1 . . 8 3 3 12 2 Engine 12 | 1 2 . 5 . . . 1 . . . 1 . . 1 . . . . . . . . 1 . Core 16 | . . . . . . 1 1 4 . . . . . 3 . . . . . 7 . . . . Reactor 23 | . . . . . . . . . . . . . . 2 . . 1 . . 1 3 3 11 2 Propulsion 119 | 2 5 . 22 1 2 2 6 6 . . . . 4 9 1 . 3 . 3 25 1 3 18 6 Treads 55 | 2 5 . 22 1 1 2 6 6 . . . . 4 5 1 . . . . . . . . . Leg 51 | . . . . . 1 . . . . . . . . . . . . . . 23 1 3 18 5 Wheel 1 | . . . . . . . . . . . . . . 1 . . . . . . . . . . Hover 11 | . . . . . . . . . . . . . . 3 . . 3 . 3 2 . . . . Flight 1 | . . . . . . . . . . . . . . . . . . . . . . . . 1 Utility 155 | 1 7 . 12 1 2 1 7 12 2 . 10 1 5 8 1 . 7 10 14 11 8 7 20 8 Device 63 | . . . 6 1 . . 3 2 2 . . 1 1 2 1 . 3 8 4 5 4 2 13 5 Storage 16 | 1 5 . 1 . 1 . . 1 . . . . 2 . . . 1 . 1 1 . . 2 . Processor 22 | . . . . . . . 1 5 . . 6 . 1 1 . . . . 1 1 . 2 3 1 Hackware 1 | . . . . . . . . . . . 1 . . . . . . . . . . . . . Protection 53 | . 2 . 5 . 1 1 3 4 . . 3 . 1 5 . . 3 2 8 4 4 3 2 2 Artifact . | . . . . . . . . . . . . . . . . . . . . . . . . . Weapon 165 | 2 5 1 13 2 1 2 6 14 1 . 1 2 16 21 1 2 5 3 8 12 7 10 27 3 Energy Gun 10 | . . . . . . . . . . . . . 6 2 . . . . . . 1 . . 1 Energy Cannon 27 | . . . . . . . . . . . . . . 3 . 2 2 2 4 3 1 5 5 . Ballistic Gun 75 | 2 5 1 11 1 . 2 5 9 . . 1 . 2 1 . . 1 . 4 4 5 3 17 1 Ballistic Cannon 22 | . . . . . . . . . . . . . 3 10 . . . 1 . 4 . 2 2 . Launcher 22 | . . . 2 1 1 . 1 3 . . . 1 3 3 1 . 1 . . 1 . . 3 1 Special Weapon . | . . . . . . . . . . . . . . . . . . . . . . . . . Impact Weapon 9 | . . . . . . . . 2 1 . . 1 2 2 . . 1 . . . . . . . Slashing Weapon . | . . . . . . . . . . . . . . . . . . . . . . . . . Piercing Weapon . | . . . . . . . . . . . . . . . . . . . . . . . . . Special Melee Weapon . | . . . . . . . . . . . . . . . . . . . . . . . . . Unidentified Prototypes 26 | . . . . . . . 1 . 1 . 7 . 1 . . . 6 . . . 5 1 4 . Corrupted Parts 1 | . . . . . . . . . . . . . . . . . . . . . . . 1 . System Corruption 11 | . . . . . . . . . . . . . . . . . . . . . . . 11 . Parts Lost 118 | . . . 6 . . 4 10 6 . . . . 1 22 . 2 1 2 5 12 . 1 19 27 Power 14 | . . . 1 . . 1 2 . . . . . . 2 . 1 . . . 2 . . 3 2 Propulsion 33 | . . . 1 . . 1 4 2 . . . . 1 8 . . . . 1 2 . . 4 9 Utility 39 | . . . 3 . . 1 2 2 . . . . . 5 . . . 1 1 5 . 1 7 11 Weapon 32 | . . . 1 . . 1 2 2 . . . . . 7 . 1 1 1 3 3 . . 5 5 Highest Loss Streak 27 | . . . 2 . . 3 7 3 . . . . 1 12 . 2 1 2 1 7 . 1 8 27 To Critical Strikes . | . . . . . . . . . . . . . . . . . . . . . . . . . Average Slot Usage (%) 94 | . 96 100 98 100 100 89 97 99 99 100 99 100 98 93 82 75 74 81 77 93 94 99 97 89 Engine 3 | . 13 14 11 11 11 . 6 . . . 3 7 6 2 . . 1 . . . . . . . Core 2 | . . . . . . 6 2 6 7 7 3 . . 4 11 5 3 . . 6 4 . . . Reactor 2 | . . . . . . . . . . . . . . 2 . . 1 5 5 2 5 14 12 10 Treads 19 | . 27 28 32 33 33 32 34 29 30 30 30 30 32 25 4 5 . . . . . . . . Leg 6 | . . . . . . . . . . . . . . . . . . . . 32 36 32 29 25 Hover 2 | . . . . . . . . . . . . . . 3 12 11 18 23 21 1 . . . . Device 7 | . . . 11 11 11 . 8 7 6 7 3 6 6 4 5 5 5 10 11 8 10 10 14 17 Storage 7 | . 19 14 11 11 11 11 9 7 7 7 7 7 6 5 5 5 5 5 5 8 10 9 5 3 Processor 11 | . . . . . . . 3 9 15 15 19 23 20 17 17 17 17 17 12 6 5 8 13 14 Protection 6 | . 5 14 9 11 11 16 4 12 7 7 6 . 5 4 5 5 4 . 5 7 5 7 2 2 Energy Cannon 1 | . . . . . . . . . . . . . . . . 5 2 6 5 1 3 2 2 3 Ballistic Gun 12 | . 27 28 21 22 22 21 26 20 11 7 15 15 10 1 5 4 . 3 6 9 6 7 11 10 Ballistic Cannon 2 | . . . . . . . . . . . . . . 12 5 5 4 . 1 3 . 2 1 . Impact Weapon 1 | . . . . . . . . 2 3 7 7 6 2 . . . 1 . . . . . . . Naked Turns . | . . . . . . . . . . . . . . . . . . . . . . . . . Heaviest Build 153 | 11 27 27 40 43 63 61 64 77 66 65 66 66 116 135 116 116 153 153 150 104 104 139 141 117 Greatest Support 202 | 40 40 40 66 60 60 66 86 83 80 80 80 80 108 143 60 40 66 66 73 160 168 176 200 202 Greatest Overweight (x) 4 | 2 4 . . . 1 . 1 1 . . . . 1 4 2 2 2 2 2 4 . . . . Average Overweight (x) . | . . . . . . . . . . . . . . . 1 2 1 2 1 . . . . . Largest Inventory Capacity 25 | 8 25 15 15 15 20 20 20 20 20 20 20 20 25 25 25 25 25 25 25 15 15 15 15 15 Average Capacity 19 | 7 10 15 15 15 15 20 20 20 20 20 20 20 22 25 25 25 25 25 21 15 15 15 15 14 Most Carried 25 | 3 12 13 15 15 15 18 20 20 20 20 20 20 25 25 25 24 25 25 25 15 15 15 15 15 Average Carried 18 | 1 9 12 14 14 14 16 19 19 20 20 19 19 21 23 24 23 24 24 20 14 14 14 14 13 Final Capacity 25 | 8 15 15 15 15 20 20 20 20 20 20 20 20 25 25 25 25 25 25 15 15 15 15 15 5 Final Carried 25 | 3 12 13 15 15 15 18 20 20 20 20 20 20 25 25 24 23 25 24 14 15 15 15 15 5 Class Distribution -------------------- 41% | Mutant 25% | Scavenger-Mutant 11% | Scavenger-Tank 9% | Scavenger-Gunner 4% | Scavenger-Skirmisher 3% | Gunner Dominant Class ---------------- Mutant | -10/Materials Mutant | -10/Mines Scavenger-Mutant | -9/Materials Scavenger-Mutant | -9/Mines Scavenger-Mutant | -9/Exiles Mutant | -8/Mines Scavenger-Skirmisher | -8/Materials Scavenger-Tank | -7/Factory Skirmisher | -7/Lower Caves Mutant | -7/Lower Caves Mutant | -7/Zion Mutant | -6/Proximity Caves Mutant | -6/Factory Mutant | -5/Factory Mutant | -5/Upper Caves Mutant | -5/Upper Caves Mutant | -5/Warlord Mutant | -4/Proximity Caves Mutant | -4/Factory Scavenger-Tank | -4/Extension Scavenger-Tank | -4/Cetus Scavenger-Tank | -3/Research Scavenger-Mutant | -2/Research Scavenger-Gunner | -1/Access Resources | -11 -10 -10 -9 -9 -9 -8 -8 -7 -7 -7 -7 -6 -6 -5 -5 -5 -5 -4 -4 -4 -4 -3 -2 -1 ----------- Run | Jun Mat Min Mat Min Exi Min Mat Fac Low Low Zio Pro Fac Fac Upp Upp War Pro Fac Ext Cet Res Res Acc Matter Collected 14518 | 193 289 46 1346 145 . 254 735 1228 30 158 104 155 919 2533 241 147 757 163 541 1152 362 691 1817 512 Remotely . | . . . . . . . . . . . . . . . . . . . . . . . . . Salvage Created 18650 | . 289 46 1484 154 . 278 1389 1707 . 70 . 395 1198 2430 128 195 192 194 1123 1050 388 1699 2860 1381 Parts 903 | . 25 4 100 16 . 19 74 97 . . . 11 54 118 10 8 6 9 51 37 17 83 111 53 Haulers Intercepted 21 | . 2 . 5 . . . 1 3 . . . . . 3 . . . . 3 . . . 4 . Recyclers Shooed 11 | . 1 1 . . . . 2 2 . . . . 1 1 . . . . 1 1 . 1 . . Parts Field Recycled . | . . . . . . . . . . . . . . . . . . . . . . . . . Retrieved Matter . | . . . . . . . . . . . . . . . . . . . . . . . . . Parts Self-Destructed 33 | . . . . . . . . . . . . 8 . . 9 8 . 8 . . . . . . Prevented 6 | . . . . . . . . . . . . 4 . . 2 . . . . . . . . . Kills | -11 -10 -10 -9 -9 -9 -8 -8 -7 -7 -7 -7 -6 -6 -5 -5 -5 -5 -4 -4 -4 -4 -3 -2 -1 ------- Run | Jun Mat Min Mat Min Exi Min Mat Fac Low Low Zio Pro Fac Fac Upp Upp War Pro Fac Ext Cet Res Res Acc Combat Hostiles Destroyed 296 | . 9 3 30 10 . 8 22 27 . . . 6 22 46 7 3 2 5 10 13 8 19 30 16 Guns 155 | . 9 3 28 7 . 7 19 25 . . . 2 15 1 . 1 . 2 4 4 2 3 15 8 Cannons 81 | . . . . . . . . . . . . . 1 35 2 1 2 2 5 9 6 10 4 4 AOE 42 | . . . 2 3 . 1 3 2 . . . 4 5 5 5 . . . . . . . 10 2 Classes Destroyed 23 | . 3 . 4 . . 3 3 1 . . . 2 . 1 . 1 1 1 . 1 . . . 2 Worker 15 | . . . 2 . . . . 2 . . . . 1 3 . . . . 2 1 . . 4 . Builder 22 | . . . . . . . 1 2 . . . . 3 7 . . . . 2 1 . 2 2 2 Tunneler 2 | . . . . . . . . . . . . . . . . . . . . 1 . 1 . . Hauler 21 | . 2 . 5 . . . 1 3 . . . . . 3 . . . . 3 . . . 4 . Recycler 14 | . . . . . . 1 4 3 . . . . . . . . . . . 1 . 2 2 1 Minesweeper 1 | . . . . . . . . . . . . 1 . . . . . . . . . . . . Mechanic 2 | . . . . . . . . . . . . . . 2 . . . . . . . . . . Operator 2 | . . . . . . . 1 . . . . . . . . . . . . . . . 1 . Drone 4 | . . . . . . . . . . . . 2 . . . . . 2 . . . . . . Watcher 22 | . 1 . 1 . . . 4 1 . . . . 4 6 . . . . 1 . . 1 2 1 Swarmer 53 | . 9 3 6 8 . 4 6 . . . . . 3 5 5 . . . . . . . 4 . Saboteur 1 | . . . . . . . . . . . . . . . . . . . . . . . . 1 Grunt 107 | . . . 13 2 . 2 10 19 . . . 3 11 21 1 . 1 . 2 3 . 3 7 9 Brawler 6 | . . . 1 . . . . . . . . 1 1 . . . . . . . . 1 . 2 Duelist 7 | . . . . . . 1 . 1 . . . . . 1 1 . . . . . . . 1 2 Sentry 30 | . . . 10 . . . 4 . . . . . . 2 . . . 1 3 4 . 4 2 . Demolisher 1 | . . . . . . . . . . . . . . . . . . 1 . . . . . . Specialist 4 | . . . . . . . 2 . . . . . 2 . . . . . . . . . . . Hunter 32 | . . . . . . 1 . . . . . . 1 5 . 2 . . 2 2 . 4 15 . Programmer 34 | . . . . . . . . 7 . . . . 4 12 . . . . 3 . . 7 . 1 Heavy 1 | . . . . . . . . . . . . . . . . . . . . . . . . 1 Behemoth 5 | . . . . . . . . . . . . . . . . 1 . 1 . 2 . . 1 . Cetus Guard 8 | . . . . . . . . . . . . . . . . . . . . . 8 . . . Executioner 1 | . . . . . . . . . . . . . . . . . 1 . . . . . . . Thug 2 | . . . . . . . . . . . . . . . . . 1 . . 1 . . . . Savage 1 | . . . . . . . . . . . . 1 . . . . . . . . . . . . Butcher 1 | . . . . . . . . . . . . . . . . . . . . 1 . . . . Best Kill Streak 10 | . 4 3 4 4 . 5 5 7 . . . 4 4 6 5 2 1 1 7 3 4 4 10 5 Combat Bots Only 6 | . 4 3 4 4 . 4 4 6 . . . 4 4 5 5 2 1 1 3 2 4 3 6 5 Max Kills in Single Turn 5 | . 1 1 2 3 . 1 2 2 . . . 3 2 3 5 1 1 1 2 2 1 2 3 3 Gunslinging 1 | . . . . . . . 1 . . . . . . . . . . . . . . . . . Exploded 5 | . . . 1 3 . 1 2 2 . . . 2 2 2 5 . . . . . . . 3 2 Melee . | . . . . . . . . . . . . . . . . . . . . . . . . . Uniques/NPCs Destroyed 1 | . . . . . . . . . . . . . . . . . . . . . 1 . . . A7 (-4/Cetus) Combat | -11 -10 -10 -9 -9 -9 -8 -8 -7 -7 -7 -7 -6 -6 -5 -5 -5 -5 -4 -4 -4 -4 -3 -2 -1 -------- Run | Jun Mat Min Mat Min Exi Min Mat Fac Low Low Zio Pro Fac Fac Upp Upp War Pro Fac Ext Cet Res Res Acc Damage Taken 30979 | . 167 83 1654 353 . 651 1436 1748 . . . 18 901 5325 119 524 112 631 1281 2516 322 1457 5752 5929 Core 3638 | . 32 14 66 34 . 145 175 195 . . . . 57 464 18 38 18 26 78 314 . 98 262 1604 Absorbed by Shields 3093 | . . . . . . . . . . . . . . . . . 33 107 . 9 39 1402 1142 361 Redirected to Shielding 544 | . . 8 16 . . . . . . . . . . 125 7 89 38 39 154 68 . . . . Regen/Repaired (Parts) 176 | . . . . . . . . . . . 73 . . . . . 103 . . . . . . . Core Remaining (%) 73 | 100 . 81 . . . 38 68 . . . . 72 93 . . . . 43 . . 65 92 81 . Volleys Fired 1012 | . 33 6 143 21 . 21 79 96 . 1 . 8 58 138 17 20 13 17 49 61 21 79 105 26 Largest 4 | . 2 2 2 2 . 2 3 3 . 1 . 1 3 3 2 2 2 2 3 3 3 3 4 4 Hottest 282 | . 40 40 46 46 . 59 71 74 . 36 . 39 110 202 90 188 155 188 211 197 152 207 223 282 Shots Fired 2299 | . 65 12 281 41 . 42 226 254 1 2 . 8 119 321 20 31 21 25 97 129 63 149 301 91 Gun 1547 | . 65 12 276 40 . 41 223 244 1 . . 4 109 14 2 6 3 6 47 71 39 55 224 65 Cannon 695 | . . . . . . . . . . . . . 4 296 17 25 18 19 50 56 24 94 69 23 Launcher 57 | . . . 5 1 . 1 3 10 . 2 . 4 6 11 1 . . . . 2 . . 8 3 Special . | . . . . . . . . . . . . . . . . . . . . . . . . . Kinetic 1902 | . 65 12 276 40 . 41 223 244 1 . . 4 70 285 19 14 13 13 51 103 33 83 249 63 Thermal 158 | . . . . . . . . . . . . . . . . 17 8 9 29 13 . 20 37 25 Explosive 34 | . . . 5 1 . 1 . 2 . 2 . . 6 5 1 . . . . . . . 8 3 Electromagnetic 162 | . . . . . . . 3 8 . . . 4 43 31 . . . . 17 3 . 46 7 . Entropic 43 | . . . . . . . . . . . . . . . . . . 3 . 10 30 . . . Robot Hit Streak 21 | . 5 4 18 12 . 11 16 16 . . . 4 14 15 3 20 9 6 21 12 6 11 13 20 Robot Miss Streak 7 | . 3 4 4 2 . 3 4 5 . . . 1 3 5 1 . 2 2 2 6 4 6 7 1 Penetration Max 2 | . . . . . . . . . . . . . . 1 . 1 . . 1 2 1 1 1 1 Secondary Targets 19 | . 1 . 1 2 . 2 4 3 . . . . 1 . . . . . . . 1 . 4 . Max Gunslinging Chain 1 | . 1 . 1 1 . 1 1 1 . . . . 1 . . . . . . . 1 . 1 . Shots Hit Robots 1458 | . 36 6 194 27 . 32 155 186 . 2 . 7 95 199 4 17 11 15 72 66 34 83 167 50 Core Hits 828 | . 18 4 75 12 . 14 68 117 . . . 14 78 121 7 7 6 6 35 40 20 41 103 42 Critical Kills 32 | . 1 . 1 . . . 1 1 . . . . 2 . . 2 . 1 1 3 2 2 9 6 Critical Parts Destroyed 26 | . . . . . . . 3 3 . . . . . . . . . . 1 7 1 1 8 2 Critical Strikes 94 | . 1 . 1 . . . 4 4 . . . . 7 16 . 2 1 3 2 16 4 7 18 8 Meltdown 5 | . . . . . . . . . . . . . . . . 1 . 1 . . . 1 . 2 Destroy 55 | . 1 . 1 . . . 4 4 . . . . 2 . . 1 . . 2 13 2 2 17 6 Blast 22 | . . . . . . . . . . . . . 1 15 . . 1 2 . . . 3 . . Corrupt 7 | . . . . . . . . . . . . . 4 1 . . . . . . . 1 1 . Detonate 1 | . . . . . . . . . . . . . . . . . . . . . 1 . . . Sunder 4 | . . . . . . . . . . . . . . . . . . . . 3 1 . . . Melee Attacks 58 | . . . . . . . . 7 1 11 1 13 14 6 . . 5 . . . . . . . Impact 58 | . . . . . . . . 7 1 11 1 13 14 6 . . 5 . . . . . . . Slashing . | . . . . . . . . . . . . . . . . . . . . . . . . . Piercing . | . . . . . . . . . . . . . . . . . . . . . . . . . Sneak Attacks 5 | . . . . . . . . . . . . 1 2 2 . . . . . . . . . . Combat Hostiles . | . . . . . . . . . . . . . . . . . . . . . . . . . Follow-up Attacks . | . . . . . . . . . . . . . . . . . . . . . . . . . Damage Inflicted 42875 | . 383 68 2389 615 . 629 2273 3670 . 158 . 577 2980 8586 484 447 351 508 2457 2208 1557 3293 6452 2790 Guns 18444 | . 383 68 2132 417 . 476 1986 3165 . . . 50 1653 166 26 111 65 100 987 981 776 947 2771 1184 Cannons 15455 | . . . . . . . . . . . . . 100 6638 65 336 286 408 1470 1089 660 2275 1354 774 Explosions 8071 | . . . 257 198 . 153 287 505 . . . 463 991 1392 393 . . . . 138 121 71 2310 792 Melee 848 | . . . . . . . . . . 158 . 64 236 390 . . . . . . . . . . Ramming 57 | . . . . . . . . . . . . . . . . . . . . . . . 17 40 Kinetic 25652 | . 383 68 2132 417 . 476 1986 3165 . . . 50 1024 6255 91 232 129 269 1081 1470 451 1503 3342 1128 Thermal 4301 | . . . . . . . 62 . . . . 120 . 254 . 215 222 239 828 149 121 492 769 830 Explosive 6027 | . . . 257 198 . 153 . 224 . . . . 991 734 393 . . . . . . 71 2214 792 Electromagnetic 4594 | . . . . . . . 225 281 . . . 343 729 953 . . . . 548 178 . 1227 110 . Impact 848 | . . . . . . . . . . 158 . 64 236 390 . . . . . . . . . . Slashing . | . . . . . . . . . . . . . . . . . . . . . . . . . Piercing . | . . . . . . . . . . . . . . . . . . . . . . . . . Entropic 1396 | . . . . . . . . . . . . . . . . . . . . 411 985 . . . Highest Corruption 27 | . . . . . . . . 4 4 4 4 2 3 8 8 8 8 . 7 7 7 13 15 27 Average Corruption 5 | . . . . . . . . 2 4 4 2 2 2 3 8 8 8 . 3 7 7 10 14 5 Corruption Purged . | . . . . . . . . . . . . . . . . . . . . . . . . . Corruption Blocked . | . . . . . . . . . . . . . . . . . . . . . . . . . Effects 483 | . . . . . . . . 41 8 17 9 13 42 46 34 27 3 . 19 58 14 38 100 14 Message Errors 100 | . . . . . . . . 7 3 3 2 1 9 11 10 6 . . 5 12 1 5 23 2 Matter Fused 129 | . . . . . . . . 10 1 4 3 6 11 15 8 8 2 . 6 12 2 10 26 5 Heat Flow Errors 57 | . . . . . . . . 8 . 2 . 1 5 7 3 1 . . 5 8 1 1 14 1 Energy Discharges 51 | . . . . . . . . 3 2 2 2 1 8 3 4 3 1 . 1 7 2 6 6 . Parts Rejected 7 | . . . . . . . . . . . . . . . . . . . . . . 3 3 1 Parts Fused 3 | . . . . . . . . . . . . 1 . . 1 . . . . 1 . . . . Data Loss (minor) 56 | . . . . . . . . 6 . 1 2 1 5 6 5 3 . . . 7 1 4 14 1 Data Loss (major) 20 | . . . . . . . . 3 1 1 . 1 2 1 1 2 . . 1 5 . . 2 . Misfires 23 | . . . . . . . . 3 1 1 . . 1 2 1 1 . . . 1 5 . 6 1 Alerts 17 | . . . . . . . . 1 . 3 . 1 . . 1 3 . . . 2 1 2 3 . Misdirections 5 | . . . . . . . . . . . . . . . . . . . . . . 2 . 3 Weapon Failures 15 | . . . . . . . . . . . . . 1 1 . . . . 1 3 1 5 3 . Overload Shots . | . . . . . . . . . . . . . . . . . . . . . . . . . Overflow Damage 1015 | . . . . . . . . . . 97 . 24 215 379 31 . . . 15 4 . 89 94 67 Projectiles 302 | . . . . . . . . . . . . . . 185 . . . . 15 4 . 89 . 9 Explosions 297 | . . . . . . . . . . . . . 23 91 31 . . . . . . . 94 58 Melee 416 | . . . . . . . . . . 97 . 24 192 103 . . . . . . . . . . Knockbacks 80 | . . . . . . . . . . 1 . . 2 67 . 3 . 2 . 1 . 3 1 . Impact 2 | . . . . . . . . . . 1 . . 1 . . . . . . . . . . . Kinetic 70 | . . . . . . . . . . . . . 1 60 . 2 . 2 . 1 . 3 1 . Secondary 8 | . . . . . . . . . . . . . . 7 . 1 . . . . . . . . Self-Inflicted Damage 591 | . . . . . . 8 . 37 . . . . . 442 . . . . . 20 . . 83 1 Shots 13 | . . . . . . 1 . 2 . . . . . 6 . . . . . 1 . . 3 . Rammed 1 | . . . . . . . . . . . . . . . . . . . . . . . . 1 Targets Rammed 7 | . . . . . . . . . . . . . . . . . . . . . . . 1 6 Kicked 6 | . . . . . . . . . . . . . . . . . . . . . . . 1 5 Crushed . | . . . . . . . . . . . . . . . . . . . . . . . . . Highest Temperature 470 | . . . 18 . . 84 249 241 . 234 . 156 225 417 191 318 270 318 415 246 97 358 470 210 Average Temperature 91 | . . . 5 . . 30 122 89 . 106 . 70 82 104 51 77 90 100 103 63 21 76 120 56 Received Heat Transfer 5135 | . . . 687 90 . 90 495 642 . . . 9 216 1449 18 24 33 27 120 306 . 101 460 368 Effects 15 | . . . . . . . . . . . . . . 2 . 1 . 1 . . . 3 8 . Shutdowns 6 | . . . . . . . . . . . . . . . . . . . . . . 2 4 . Energy Bleed 3 | . . . . . . . . . . . . . . 2 . . . . . . . 1 . . Interference 5 | . . . . . . . . . . . . . . . . 1 . 1 . . . . 3 . Matter Decay 1 | . . . . . . . . . . . . . . . . . . . . . . . 1 . Siege Activations . | . . . . . . . . . . . . . . . . . . . . . . . . . Robots Corrupted 14 | . . . . . . . . . . . . . 2 5 . . . . 1 . . 5 1 . Combat Hostiles 13 | . . . . . . . . . . . . . 1 5 . . . . 1 . . 5 1 . Parts Fried 36 | . . . . . . . . . . . . 3 8 7 . . . . 7 . . 10 1 . Impact Corruptions 15 | . . . . . . . . . . 4 . 1 7 3 . . . . . . . . . . Robots Melted 5 | . . . . . . . . . . . . . . . . 1 . 1 . . . 1 . 2 Combat Hostiles 5 | . . . . . . . . . . . . . . . . 1 . 1 . . . 1 . 2 Parts Melted 29 | . . . . . . . . 1 . . . 2 2 . . 5 . 2 1 . . 10 . 6 Heat Transferred 4121 | . . . . . . . 100 . . . . 150 . 150 . 261 337 272 851 148 100 370 642 740 Parts Sabotaged 5 | . . . . . . . . . . . . . . . . . . . . . . . . 5 Parts Stolen . | . . . . . . . . . . . . . . . . . . . . . . . . . Parts Stripped . | . . . . . . . . . . . . . . . . . . . . . . . . . Power Chain Reactions 6 | . . . . . . . 2 . . . . 3 . . . . . . . . . . 1 . Missiles Intercepted . | . . . . . . . . . . . . . . . . . . . . . . . . . Alert | -11 -10 -10 -9 -9 -9 -8 -8 -7 -7 -7 -7 -6 -6 -5 -5 -5 -5 -4 -4 -4 -4 -3 -2 -1 ------- Run | Jun Mat Min Mat Min Exi Min Mat Fac Low Low Zio Pro Fac Fac Upp Upp War Pro Fac Ext Cet Res Res Acc Peak Influence 1326 | . 242 77 468 332 . 95 248 324 . . . . 819 1026 . . . . 450 417 494 515 1326 1308 Initial 795 | . . 7 29 182 . . . . . . . . 602 232 . . . . 325 183 216 152 289 795 Average 360 | . 94 71 170 258 . 57 79 169 . . . . 442 503 . . . . 352 209 371 257 883 1032 Maximum Alert Level 4 | . 1 . 2 1 . . 1 1 . . . . 3 3 . . . . 2 2 2 2 4 4 Low Security (%) 34 | 100 80 100 72 8 . 100 88 55 . . . . . 2 . . . . . 44 . 50 . . Level 1 35 | . 19 . 21 91 . . 11 44 . . . . 51 37 . . . . 83 52 71 27 16 . Level 2 13 | . . . 6 . . . . . . . . . 42 35 . . . . 16 3 28 21 3 . Level 3 10 | . . . . . . . . . . . . . 6 23 . . . . . . . . 40 60 Level 4 5 | . . . . . . . . . . . . . . . . . . . . . . . 39 39 Level 5 . | . . . . . . . . . . . . . . . . . . . . . . . . . High Security . | . . . . . . . . . . . . . . . . . . . . . . . . . Max Security . | . . . . . . . . . . . . . . . . . . . . . . . . . Squads Dispatched 61 | . . . 2 1 . . 5 12 . . . . 7 12 . . . . 3 4 . 5 2 8 Investigation 9 | . . . . 1 . . . . . . . . 1 2 . . . . . 2 . 2 1 . Extermination 21 | . . . . . . . . 7 . . . . 4 5 . . . . 1 . . 3 . 1 Reinforcement 22 | . . . 2 . . . 2 5 . . . . 2 3 . . . . 2 2 . . 1 3 Assault 6 | . . . . . . . . . . . . . . 2 . . . . . . . . . 4 Garrison 3 | . . . . . . . 3 . . . . . . . . . . . . . . . . . Intercept . | . . . . . . . . . . . . . . . . . . . . . . . . . Searches Triggered 2 | . . . . . . . . . . . . . 2 . . . . . . . . . . . Construction Impeded 5 | . . . . . . . . . . . . . 1 2 . . . . . 2 . . . . Haulers Reinforced 4 | . . . . . . . . 2 . . . . . 1 . . . . 1 . . . . . Active Scanning Responses . | . . . . . . . . . . . . . . . . . . . . . . . . . Cargo Convoy Interrupts . | . . . . . . . . . . . . . . . . . . . . . . . . . Stealth | -11 -10 -10 -9 -9 -9 -8 -8 -7 -7 -7 -7 -6 -6 -5 -5 -5 -5 -4 -4 -4 -4 -3 -2 -1 --------- Run | Jun Mat Min Mat Min Exi Min Mat Fac Low Low Zio Pro Fac Fac Upp Upp War Pro Fac Ext Cet Res Res Acc Distress Signals 43 | . 3 . 5 . . . 5 3 . . . 1 1 1 . . 2 13 2 2 2 1 2 . Communications Jammed 40 | . . . . . . . . . . . . . . . . . . . . . . . 23 17 Distress Signals 37 | . . . . . . . . . . . . . . . . . . . . . . . 23 14 Times Spotted 524 | . 19 4 49 12 . 7 37 44 . . . 8 37 70 8 3 28 7 20 31 11 32 44 53 Peak Tracking Total 22 | . 5 3 6 4 . 4 6 5 . . . 4 5 11 5 2 11 2 5 4 5 5 6 22 Tactical Retreats 26 | . 2 . 2 1 . . 3 4 . . . . 1 1 . . 1 . 1 1 . 3 1 5 Traps | -11 -10 -10 -9 -9 -9 -8 -8 -7 -7 -7 -7 -6 -6 -5 -5 -5 -5 -4 -4 -4 -4 -3 -2 -1 ------- Run | Jun Mat Min Mat Min Exi Min Mat Fac Low Low Zio Pro Fac Fac Upp Upp War Pro Fac Ext Cet Res Res Acc Traps Triggered 15 | . 3 . . . . . . 3 . . . . . . . . . . 3 2 . 2 1 1 Indirectly 2 | . . . . . . . . 2 . . . . . . . . . . . . . . . . Trap Hack Attempts . | . . . . . . . . . . . . . . . . . . . . . . . . . Triggered . | . . . . . . . . . . . . . . . . . . . . . . . . . Disarmed . | . . . . . . . . . . . . . . . . . . . . . . . . . Reprogrammed . | . . . . . . . . . . . . . . . . . . . . . . . . . Reused 1 | . . . . . . . . . . . . . . . 1 . . . . . . . . . Traps Extracted . | . . . . . . . . . . . . . . . . . . . . . . . . . Installed 1 | . . . . . . . . . . . . . . . 1 . . . . . . . . . Triggered 9 | . . . . . . . . . 1 . . . . . 2 . 6 . . . . . . . Most Traps Carried 1 | . . . . . . . . . . . . 1 1 1 1 . . . . . . . . . Exploded 1 | . . . . . . . 1 . . . . . . . . . . . . . . . . . Machines | -11 -10 -10 -9 -9 -9 -8 -8 -7 -7 -7 -7 -6 -6 -5 -5 -5 -5 -4 -4 -4 -4 -3 -2 -1 ---------- Run | Jun Mat Min Mat Min Exi Min Mat Fac Low Low Zio Pro Fac Fac Upp Upp War Pro Fac Ext Cet Res Res Acc Machines Disabled 44 | . . . . . . . 1 5 1 . . . 6 19 . . 2 1 . . 1 2 4 2 Max in Single Turn 7 | . . . . . . . 1 3 1 . . . 2 7 . . 1 1 . . . 1 1 1 Garrison Access 3 | . . . . . . . . . . . . . 2 . . . . . . . . . 1 . Machines Repaired . | . . . . . . . . . . . . . . . . . . . . . . . . . Machines Sabotaged . | . . . . . . . . . . . . . . . . . . . . . . . . . Overloaded Fab Kills . | . . . . . . . . . . . . . . . . . . . . . . . . . Hacking | -11 -10 -10 -9 -9 -9 -8 -8 -7 -7 -7 -7 -6 -6 -5 -5 -5 -5 -4 -4 -4 -4 -3 -2 -1 --------- Run | Jun Mat Min Mat Min Exi Min Mat Fac Low Low Zio Pro Fac Fac Upp Upp War Pro Fac Ext Cet Res Res Acc Machines Accessed 77 | . 7 . 9 1 1 . 6 5 1 . 1 . 11 9 . . 2 . 2 9 2 2 8 1 Terminals 64 | . 7 . 9 . . . 6 5 . . . . 7 7 . . . . 2 9 2 2 7 1 Fabricators 3 | . . . . . . . . . . . . . 1 2 . . . . . . . . . . Repair Stations . | . . . . . . . . . . . . . . . . . . . . . . . . . Recycling Units . | . . . . . . . . . . . . . . . . . . . . . . . . . Scanalyzers . | . . . . . . . . . . . . . . . . . . . . . . . . . Garrison Access 4 | . . . . . . . . . . . . . 3 . . . . . . . . . 1 . Total Hacks 180 | . 20 . 25 1 1 . 24 9 1 . 4 . 20 26 . . 5 . 4 21 3 2 13 1 Successful 95 | . 14 . 17 1 1 . 13 4 1 . 4 . 7 16 . . 5 . 1 8 1 . 2 . Failed 85 | . 6 . 8 . . . 11 5 . . . . 13 10 . . . . 3 13 2 2 11 1 Catastrophic 21 | . . . 1 . . . 2 2 . . . . 4 1 . . . . 2 2 2 2 2 1 Database Lockouts . | . . . . . . . . . . . . . . . . . . . . . . . . . Manual 67 | . 10 . 14 . 1 . 9 4 . . . . 4 11 . . . . 1 5 1 1 6 . Terminals 157 | . 20 . 25 . . . 24 9 . . . . 14 22 . . . . 4 21 3 2 12 1 Fabricators 6 | . . . . . . . . . . . . . 2 4 . . . . . . . . . . Repair Stations . | . . . . . . . . . . . . . . . . . . . . . . . . . Recycling Units . | . . . . . . . . . . . . . . . . . . . . . . . . . Scanalyzers . | . . . . . . . . . . . . . . . . . . . . . . . . . Garrison Access 5 | . . . . . . . . . . . . . 4 . . . . . . . . . 1 . Terminal Hacks 68 | . 9 . 12 1 1 . 11 3 1 . 4 . 3 8 . . 5 . 1 7 1 . 1 . Record 6 | . . . . . . . . . 1 . . . . . . . 4 . . . 1 . . . Part Schematic 4 | . . . . . . . . . . . 4 . . . . . . . . . . . . . Robot Analysis 3 | . 1 . 1 . . . . 1 . . . . . . . . . . . . . . . . Prototype ID Bank 11 | . 5 . 2 . . . 3 . . . . . . 1 . . . . . . . . . . Open Door 7 | . . . . 1 . . . . . . . . . . . . 1 . . 5 . . . . Open DSF 4 | . . . . . . . . 1 . . . . 1 1 . . . . . . . . 1 . Branch Access Points 2 | . . . 1 . . . 1 . . . . . . . . . . . . . . . . . Emergency Access Points 3 | . 1 . 1 . . . 1 . . . . . . . . . . . . . . . . . Terminal Index 1 | . . . . . . . 1 . . . . . . . . . . . . . . . . . Alert Level 13 | . 1 . 3 . . . 2 1 . . . . 2 2 . . . . 1 1 . . . . Unreport Threat 8 | . 1 . 2 . . . 2 . . . . . . 2 . . . . . 1 . . . . Locate Traps 3 | . . . 1 . . . 1 . . . . . . 1 . . . . . . . . . . Zone Layout 2 | . . . 1 . . . . . . . . . . 1 . . . . . . . . . . EX-Prototype ID Bank 1 | . . . . . 1 . . . . . . . . . . . . . . . . . . . Fabricator Hacks 5 | . . . . . . . . . . . . . 1 4 . . . . . . . . . . Load Schematic 3 | . . . . . . . . . . . . . 1 2 . . . . . . . . . . Build 2 | . . . . . . . . . . . . . . 2 . . . . . . . . . . Repair Station Hacks . | . . . . . . . . . . . . . . . . . . . . . . . . . Recycling Unit Hacks . | . . . . . . . . . . . . . . . . . . . . . . . . . Scanalyzer . | . . . . . . . . . . . . . . . . . . . . . . . . . Garrison Access Hacks 3 | . . . . . . . . . . . . . 2 . . . . . . . . . 1 . Seal Access 3 | . . . . . . . . . . . . . 2 . . . . . . . . . 1 . Unauthorized Hacks 19 | . 5 . 5 . . . 2 1 . . . . 1 4 . . . . . 1 . . . . Terminals 19 | . 5 . 5 . . . 2 1 . . . . 1 4 . . . . . 1 . . . . Track 5 | . 2 . 2 . . . . . . . . . . 1 . . . . . . . . . . Assimilate 2 | . . . . . . . . . . . . . 1 1 . . . . . . . . . . Botnet 12 | . 3 . 3 . . . 2 1 . . . . . 2 . . . . . 1 . . . . Fabricators . | . . . . . . . . . . . . . . . . . . . . . . . . . Repair Stations . | . . . . . . . . . . . . . . . . . . . . . . . . . Recycling Units . | . . . . . . . . . . . . . . . . . . . . . . . . . Scanalyzers . | . . . . . . . . . . . . . . . . . . . . . . . . . Garrison Access . | . . . . . . . . . . . . . . . . . . . . . . . . . Data Cores Recovered . | . . . . . . . . . . . . . . . . . . . . . . . . . Used . | . . . . . . . . . . . . . . . . . . . . . . . . . Hacking Detections 56 | . 6 . 7 . . . 6 5 . . . . 8 7 . . . . 2 5 1 2 6 1 Full Trace Events 6 | . . . . . . . . . . . . . 1 2 . . . . . 2 . . 1 . Feedback Events . | . . . . . . . . . . . . . . . . . . . . . . . . . Feedback Blocked . | . . . . . . . . . . . . . . . . . . . . . . . . . Robot Schematics Acquired 3 | . . . . . . . . . . . 3 . . . . . . . . . . . . . Robots Built . | . . . . . . . . . . . . . . . . . . . . . . . . . Authchips . | . . . . . . . . . . . . . . . . . . . . . . . . . Time . | . . . . . . . . . . . . . . . . . . . . . . . . . Total Robot Build Rating . | . . . . . . . . . . . . . . . . . . . . . . . . . Part Schematics Acquired 19 | . . . . . . . . . . . 19 . . . . . . . . . . . . . Parts Built 2 | . . . . . . . . . . . . . . 2 . . . . . . . . . . Authchips . | . . . . . . . . . . . . . . . . . . . . . . . . . Time 170 | . . . . . . . . . . . . . . 170 . . . . . . . . . . Total Part Build Rating 13 | . . . . . . . . . . . . . . 13 . . . . . . . . . . Parts Repaired . | . . . . . . . . . . . . . . . . . . . . . . . . . Time . | . . . . . . . . . . . . . . . . . . . . . . . . . Parts Recycled . | . . . . . . . . . . . . . . . . . . . . . . . . . Recycled Matter . | . . . . . . . . . . . . . . . . . . . . . . . . . Retrieved Matter . | . . . . . . . . . . . . . . . . . . . . . . . . . Retrieved Components . | . . . . . . . . . . . . . . . . . . . . . . . . . Parts Scanalyzed . | . . . . . . . . . . . . . . . . . . . . . . . . . Part Schematics Acquired . | . . . . . . . . . . . . . . . . . . . . . . . . . Parts Damaged . | . . . . . . . . . . . . . . . . . . . . . . . . . Bothacking | -11 -10 -10 -9 -9 -9 -8 -8 -7 -7 -7 -7 -6 -6 -5 -5 -5 -5 -4 -4 -4 -4 -3 -2 -1 ------------ Run | Jun Mat Min Mat Min Exi Min Mat Fac Low Low Zio Pro Fac Fac Upp Upp War Pro Fac Ext Cet Res Res Acc Used RIF Installer . | . . . . . . . . . . . . . . . . . . . . . . . . . Robots Hacked . | . . . . . . . . . . . . . . . . . . . . . . . . . Non-combat . | . . . . . . . . . . . . . . . . . . . . . . . . . Combat . | . . . . . . . . . . . . . . . . . . . . . . . . . Robot Hacks Applied . | . . . . . . . . . . . . . . . . . . . . . . . . . Relay Couplers Released 8 | . . . . . . . . . . . . . . 8 . . . . . . . . . . Programmers 8 | . . . . . . . . . . . . . . 8 . . . . . . . . . . Fabnet Peak Effective % . | . . . . . . . . . . . . . . . . . . . . . . . . . Robots Rewired 20 | . . . . . . . . . . . . . . . . . . . . 20 . . . . Allies Hacked . | . . . . . . . . . . . . . . . . . . . . . . . . . Hacks Repelled . | . . . . . . . . . . . . . . . . . . . . . . . . . Allies | -11 -10 -10 -9 -9 -9 -8 -8 -7 -7 -7 -7 -6 -6 -5 -5 -5 -5 -4 -4 -4 -4 -3 -2 -1 -------- Run | Jun Mat Min Mat Min Exi Min Mat Fac Low Low Zio Pro Fac Fac Upp Upp War Pro Fac Ext Cet Res Res Acc Total Allies 38 | . . . . 1 . . . . . . 4 . 1 1 . . . . . 26 5 . . . Largest Group 8 | . . . . 1 . . . . . . 4 4 1 1 . . . . . 8 5 . . . Highest-Rated Group 480 | . . . . 31 . . . . . . 104 104 31 10 . . . . . 470 480 . . . Highest-Rated Ally 159 | . . . . 31 . . . . . . 31 31 31 10 . . . . . 159 159 . . . Total Orders . | . . . . . . . . . . . . . . . . . . . . . . . . . Ally Attacks 243 | . . . . . . . . . . . . 32 24 . . . . . . 158 29 . . . Total Damage 6487 | . . . . . . . . . . . . 552 335 . . . . . . 4629 971 . . . Kills 38 | . . . . . . . . . . . . 4 . . . . . . . 32 2 . . . Allies Corrupted . | . . . . . . . . . . . . . . . . . . . . . . . . . Allies Melted . | . . . . . . . . . . . . . . . . . . . . . . . . . Intel | -11 -10 -10 -9 -9 -9 -8 -8 -7 -7 -7 -7 -6 -6 -5 -5 -5 -5 -4 -4 -4 -4 -3 -2 -1 ------- Run | Jun Mat Min Mat Min Exi Min Mat Fac Low Low Zio Pro Fac Fac Upp Upp War Pro Fac Ext Cet Res Res Acc Robot Analysis Total 3 | . 1 . 1 . . . . 1 . . . . . . . . . . . . . . . . Derelict Logs Recovered 10 | . . . . 2 . . . . 2 1 2 . . . 1 1 . 1 . . . . . . Drone Launches . | . . . . . . . . . . . . . . . . . . . . . . . . . Drone Recoveries . | . . . . . . . . . . . . . . . . . . . . . . . . . Exploration | -11 -10 -10 -9 -9 -9 -8 -8 -7 -7 -7 -7 -6 -6 -5 -5 -5 -5 -4 -4 -4 -4 -3 -2 -1 ------------- Run | Jun Mat Min Mat Min Exi Min Mat Fac Low Low Zio Pro Fac Fac Upp Upp War Pro Fac Ext Cet Res Res Acc Turns Passed 31588 | 68 1028 89 2382 730 381 851 1720 3079 363 693 1459 1132 2552 3887 902 707 1054 975 881 1833 405 1153 2587 677 Spaces Moved 17311 | 37 520 45 1098 411 232 433 713 1461 215 401 860 645 1117 2101 508 334 781 620 629 1025 228 633 1749 515 Core 53 | 5 3 . . . . . . . . . . . . . . . . . . . . . . 45 Treads 9578 | 32 517 45 1098 411 232 433 713 1461 215 401 860 645 1117 1398 . . . . . . . . . . Legs 4042 | . . . . . . . . . . . . . . . . . . . . 962 228 633 1749 470 Wheels 108 | . . . . . . . . . . . . . . 108 . . . . . . . . . . Hover 3530 | . . . . . . . . . . . . . . 595 508 334 781 620 629 63 . . . . Flight . | . . . . . . . . . . . . . . . . . . . . . . . . . Fastest Speed 50 | 50 160 160 160 160 160 160 160 162 165 165 165 165 162 102 102 196 93 143 95 95 120 120 103 50 Average Speed 146 | 153 160 160 160 160 160 160 163 163 165 165 165 165 183 153 168 196 120 143 99 119 120 120 108 103 Slowest Speed 300 | 160 250 160 160 160 240 160 245 243 165 165 165 165 244 246 196 196 196 143 145 300 120 120 120 120 Overloaded Moves . | . . . . . . . . . . . . . . . . . . . . . . . . . Propulsion Burnouts . | . . . . . . . . . . . . . . . . . . . . . . . . . Robots Hopped . | . . . . . . . . . . . . . . . . . . . . . . . . . Cave-ins Triggered . | . . . . . . . . . . . . . . . . . . . . . . . . . Exploration Rate (%) 51 | 3 96 13 84 87 61 65 57 38 40 53 83 56 31 27 63 38 79 58 15 86 69 20 49 19 Regions Visited 24 Branch Regions 14 Pre-discovered Areas 4 | . . . . 1 . . . . . 1 2 . . . . . . . . . . . . . Known Exits Taken 16 | . . . 1 . . . . 1 1 1 1 1 1 1 1 1 1 1 1 . 1 1 1 . Unknown Exits Taken 8 | 1 1 1 . 1 1 1 1 . . . . . . . . . . . . 1 . . . . Scrap Searched 20 | . . . . 1 . 3 . . 2 3 5 2 . . 2 . . 2 . . . . . . Spaces Dug 105 | . . . . . . . . 7 . 9 . 12 12 13 12 7 2 1 . 7 . 5 15 3 Terrain Destroyed 833 | . . . 47 10 . 19 9 14 . 33 . 18 28 180 34 15 2 7 13 54 51 47 217 35 Melee 41 | . . . . . . . . 7 . 9 . 12 12 1 . . . . . . . . . . Projectile 304 | . . . . . . . . . . . . . . 85 21 15 2 7 13 53 34 28 40 6 AOE 482 | . . . 47 10 . 19 9 7 . 24 . 6 16 94 13 . . . . . 17 19 173 28 Terrain Rammed . | . . . . . . . . . . . . . . . . . . . . . . . . . Walls Destroyed . | . . . . . . . . . . . . . . . . . . . . . . . . . Machines Disabled . | . . . . . . . . . . . . . . . . . . . . . . . . . Actions | -11 -10 -10 -9 -9 -9 -8 -8 -7 -7 -7 -7 -6 -6 -5 -5 -5 -5 -4 -4 -4 -4 -3 -2 -1 --------- Run | Jun Mat Min Mat Min Exi Min Mat Fac Low Low Zio Pro Fac Fac Upp Upp War Pro Fac Ext Cet Res Res Acc Total 21580 | 45 664 51 1493 444 243 548 1108 1947 220 412 903 680 1489 2492 535 356 870 679 809 1537 319 903 2235 598 Wait 1885 | . 57 . 136 4 . 82 263 305 . . 5 10 247 134 5 1 31 25 74 106 31 128 220 21 Move 17287 | 36 519 44 1097 410 231 432 712 1460 214 400 859 644 1116 2100 507 333 780 619 628 1024 227 632 1748 515 Hop . | . . . . . . . . . . . . . . . . . . . . . . . . . Pick Up 261 | 3 19 . 20 2 2 7 20 19 . . 9 1 15 36 . . 9 3 13 26 6 16 33 2 Fast Attach 137 | 6 8 . 5 . 2 1 6 5 2 . 7 . 1 9 1 . 6 . 4 21 10 7 28 8 Attach 137 | . 1 . 10 1 1 4 12 11 . . 2 . 5 20 . 1 4 2 14 13 3 6 20 7 Detach 38 | . . . 2 . . . 2 2 . . 7 . 3 5 . . 4 . 5 2 1 1 3 1 Swap 217 | . 10 1 37 3 2 1 3 20 2 . 3 3 19 15 2 1 6 11 7 22 6 10 29 4 Drop 316 | . 17 . 43 3 5 . 11 22 1 . 10 1 11 29 2 . 12 2 15 45 14 18 48 7 Fire 1012 | . 33 6 143 21 . 21 79 96 . 1 . 8 58 138 17 20 13 17 49 61 21 79 105 26 Melee 58 | . . . . . . . . 7 1 11 1 13 14 6 . . 5 . . . . . . . Ram 2 | . . . . . . . . . . . . . . . . . . . . . . . . 2 Kick 6 | . . . . . . . . . . . . . . . . . . . . . . . 1 5 Crush . | . . . . . . . . . . . . . . . . . . . . . . . . . Escape Stasis . | . . . . . . . . . . . . . . . . . . . . . . . . . Rewire 223 | . . . . . . . . . . . . . . . . . . . . 217 . 6 . . Trap 1 | . . . . . . . . . . . . . . . 1 . . . . . . . . . Miscellaneous . | . . . . . . . . . . . . . . . . . . . . . . . . . Route ------- -11/Junkyard -10/Materials (discovered 5 exits: *Mat x3 / [*Min x2]) -10/Mines -9/Materials (discovered 4 exits: *Mat x2 / *Min / *Sto) -9/Mines (discovered 4 exits: *Mat x2 / *Exi / *Zio) -9/Exiles -8/Mines -8/Materials -7/Factory (discovered 2 exits: *Fac / *Low) -7/Lower Caves -7/Lower Caves -7/Zion -6/Proximity Caves -6/Factory (discovered 3 exits: *Fac x3) -5/Factory -5/Upper Caves -5/Upper Caves -5/Warlord -4/Proximity Caves -4/Factory (discovered 2 exits: Res / *Ext) -4/Extension (discovered 3 exits: *Res x2 / *Cet) -4/Cetus (discovered 2 exits: *Res / [*Arc]) -3/Research -2/Research -1/Access History --------- Turn | Location | Event 16 | -11/Junkyard | Discovered new exit (range 16) 69 | -11/Junkyard | Entered Materials 315 | -10/Materials | Build established: Mutant 422 | -10/Materials | Discovered new exit (range 15) 436 | -10/Materials | Discovered new exit (range 15) 555 | -10/Materials | Discovered new exit (range 14) 704 | -10/Materials | Discovered new exit (range 5) 841 | -10/Materials | Discovered new exit (range 16) 1097 | -10/Materials | Entered Mines 1125 | -10/Mines | Assembled infested the area 1170 | -10/Mines | Discovered new exit (range 12) 1186 | -10/Mines | Entered Materials 1186 | -9/Materials | Evolved 2 slots: Propulsion x1, Utility x1 1933 | -9/Materials | Discovered new exit (range 9) 1949 | -9/Materials | Build established: Scavenger-Mutant 2540 | -9/Materials | Discovered new exit (range 16) 2709 | -9/Materials | Discovered new exit (range 15) 3354 | -9/Materials | Discovered new exit (range 15) 3437 | -9/Materials | Identified exit to Mines 3437 | -9/Materials | Identified exit to Storage 3568 | -9/Materials | Entered Mines 3642 | -9/Mines | Received a Mining Laser from a helpful Derelict 3664 | -9/Mines | Discovered new exit (range 10) 3740 | -9/Mines | A Derelict revealed a hidden shortcut to a safe place 3816 | -9/Mines | Met a Derelict shopkeep closing up shop 4095 | -9/Mines | Discovered new exit (range 6) 4292 | -9/Mines | Deemed a non-threat by the Exiles lab entrance 4292 | -9/Mines | Discovered new exit (range 5) 4298 | -9/Mines | Entered Exiles 4339 | -9/Exiles | Met 8R-AWN 4363 | -9/Exiles | Met EX-HEX 4415 | -9/Exiles | Met EX-BIN 4434 | -9/Exiles | Aligned with FarCom system 4435 | -9/Exiles | Given EX-Vault access code 4472 | -9/Exiles | Opened EX-Vault 4482 | -9/Exiles | Found Potential Leg 4491 | -9/Exiles | Found Cloak of Protection 4524 | -9/Exiles | Warned to stay clear of 0b10 Research branches 4569 | -9/Exiles | Met EX-DEC 4657 | -9/Exiles | Discovered new exit (range 14) 4679 | -9/Exiles | Left Exiles lab with Cloak of Protection 4679 | -9/Exiles | Entered Mines 4736 | -8/Mines | Lost 3 parts (1p1n1u) 4980 | -8/Mines | Build established: Mutant 5057 | -8/Mines | Core integrity fell below 50% 5499 | -8/Mines | Discovered new exit (range 5) 5530 | -8/Mines | Entered Materials 5530 | -8/Materials | Evolved 2 slots: Propulsion x1, Weapon x1 5787 | -8/Materials | Garrison activated, responded to threat 5931 | -8/Materials | Lost 7 parts (1p4n2u) 6269 | -8/Materials | Build established: Scavenger-Skirmisher 6523 | -8/Materials | Discovered new exit (range 16) 7250 | -8/Materials | Entered Factory 7250 | -7/Factory | Evolved 2 slots: Utility x2 7670 | -7/Factory | Build established: Scavenger-Tank 9293 | -7/Factory | Build established: Tank 9398 | -7/Factory | Lost 3 parts (2u1w) 9443 | -7/Factory | Discovered new exit (range 15) 9866 | -7/Factory | Identified exit to Factory 9960 | -7/Factory | Build established: Mutant 10275 | -7/Factory | Discovered new exit (range 12) 10326 | -7/Factory | Identified exit to Lower Caves 10329 | -7/Factory | Entered Lower Caves 10415 | -7/Lower Caves | Learned 4 Factory zone layouts 10529 | -7/Lower Caves | Found Alien Artifact 10529 | -7/Lower Caves | Identified Dimensional Node Initializer 10529 | -7/Lower Caves | Initialized slip node 10624 | -7/Lower Caves | Discovered new exit (range 9) 10631 | -7/Lower Caves | Learned Factory terminal intel 10690 | -7/Lower Caves | Identified exit to Lower Caves 10692 | -7/Lower Caves | Entered another Lower Caves area 11323 | -7/Lower Caves | Discovered new exit (range 12) 11341 | -7/Lower Caves | Encountered a Warlord checkpoint 11347 | -7/Lower Caves | Learned location of Extension (-4) 11383 | -7/Lower Caves | Identified exit to Zion 11385 | -7/Lower Caves | Entered Zion 11473 | -7/Zion | System corruption cleaned by Quarantine Array 11548 | -7/Zion | Learned 4 Factory zone layouts 11876 | -7/Zion | Learned location of 1 exit from Factory 11988 | -7/Zion | Learned location of Armory (-3) 12132 | -7/Zion | Found Prototype Processor 12132 | -7/Zion | Identified Exp. Targeting Computer 12157 | -7/Zion | Found Prototype Processor 12158 | -7/Zion | Identified Exp. Terrain Scan Processor 12161 | -7/Zion | Found Prototype Processor 12161 | -7/Zion | Identified Spectral Analyzer 12165 | -7/Zion | Found Prototype Processor 12165 | -7/Zion | Identified Exp. Core Analyzer 12193 | -7/Zion | Found Prototype Processor 12193 | -7/Zion | Identified Exp. Target Analyzer 12204 | -7/Zion | Found Prototype Hackware 12204 | -7/Zion | Identified Exp. Hacking Suite 12320 | -7/Zion | Received a visual enhancement algorithm 12349 | -7/Zion | Given the Hacking Drone Bay 12447 | -7/Zion | Gained Derelict followers 12819 | -7/Zion | Discovered new exit (range 12) 12838 | -7/Zion | Identified exit to Proximity Caves 12844 | -7/Zion | Entered Proximity Caves 12844 | -6/Proximity Caves | Accompanied by 4 allies 12915 | -6/Proximity Caves | Spotter reported a threat 12916 | -6/Proximity Caves | Spotter reported a threat 12968 | -6/Proximity Caves | Spotter reported a threat 13054 | -6/Proximity Caves | Spotter reported a threat 13877 | -6/Proximity Caves | Discovered exit to Factory (range 14) 13976 | -6/Proximity Caves | Entered Factory 13976 | -6/Factory | Accompanied by 1 ally 13976 | -6/Factory | Evolved 2 slots: Propulsion x1, Utility x1 13977 | -6/Factory | Identified exit to Factory 13979 | -6/Factory | Loaded intel: 26 terminal locations 14300 | -6/Factory | Build established: Scavenger-Mutant 14326 | -6/Factory | Search patrols dispatched 14676 | -6/Factory | Search patrols dispatched 15343 | -6/Factory | Build established: Scavenger-Gunner 15746 | -6/Factory | Build established: Mutant 16465 | -6/Factory | Discovered exit to Factory (range 7) 16528 | -6/Factory | Entered another Factory area 16528 | -5/Factory | Evolved 2 slots: Power x1, Propulsion x1 16676 | -5/Factory | Fabricated Imp. Kinecellerator (x1) 17022 | -5/Factory | Discovered new exit (range 13) 17135 | -5/Factory | Identified exit to Upper Caves 17417 | -5/Factory | Fabricated HERF Cannon? 18997 | -5/Factory | Build established: Scavenger-Gunner 19228 | -5/Factory | First assault squad dispatched 19515 | -5/Factory | Lost 12 parts (1p5n3u3w) 19766 | -5/Factory | Build established: Mutant 20415 | -5/Factory | Entered Upper Caves 21078 | -5/Upper Caves | Learned location of 2 exits from Factory 21291 | -5/Upper Caves | Discovered new exit (range 13) 21313 | -5/Upper Caves | Identified exit to Upper Caves 21317 | -5/Upper Caves | Entered another Upper Caves area 21322 | -5/Upper Caves | Core integrity fell below 50% 21464 | -5/Upper Caves | Learned Factory stockpile data 21902 | -5/Upper Caves | Spotted B-75 Beast 21928 | -5/Upper Caves | Destroyed B-75 Beast 22010 | -5/Upper Caves | Discovered new exit (range 7) 22022 | -5/Upper Caves | Identified exit to Warlord 22024 | -5/Upper Caves | Entered Warlord 22092 | -5/Warlord | System corruption cleaned by Quarantine Array 22579 | -5/Warlord | Visited the Vortex Lab 22579 | -5/Warlord | Warlord's base attacked by MAIN.C 22586 | -5/Warlord | Found Prototype Energy Cannon 22586 | -5/Warlord | Identified Vortex Cannon 22588 | -5/Warlord | Found Vortex Cannon 22598 | -5/Warlord | Found Prototype Energy Gun 22670 | -5/Warlord | Met Warlord 22744 | -5/Warlord | Found Prototype Device 22745 | -5/Warlord | Identified Exp. Focal Shield 22756 | -5/Warlord | Found Prototype Reactor 22756 | -5/Warlord | Identified Vortex Chain Reactor 22929 | -5/Warlord | Warlord forces counterattacked 22946 | -5/Warlord | Spotted Executioner 22954 | -5/Warlord | Destroyed Executioner 22969 | -5/Warlord | Spotted Executioner 22998 | -5/Warlord | Found Exp. Core Analyzer 23023 | -5/Warlord | Spotted Executioner 23067 | -5/Warlord | Discovered new exit (range 8) 23075 | -5/Warlord | Identified exit to Proximity Caves 23078 | -5/Warlord | Entered Proximity Caves 23080 | -4/Proximity Caves | Spotter reported a threat 23081 | -4/Proximity Caves | Spotter reported a threat 23267 | -4/Proximity Caves | Learned Research terminal intel 23670 | -4/Proximity Caves | Spotted B-86 Titan 23679 | -4/Proximity Caves | Destroyed B-86 Titan 23981 | -4/Proximity Caves | Discovered new exit (range 14) 24052 | -4/Proximity Caves | Identified exit to Factory 24053 | -4/Proximity Caves | Entered Factory 24053 | -4/Factory | Evolved 2 slots: Propulsion x1, Utility x1 24054 | -4/Factory | Identified exit to Research 24054 | -4/Factory | Identified exit to Extension 24934 | -4/Factory | Entered Extension 25518 | -4/Extension | Rescued a captive Derelict 25519 | -4/Extension | Rescued a captive Derelict 25755 | -4/Extension | Spotted B-86 Titan 25772 | -4/Extension | Spotted B-86 Titan 25798 | -4/Extension | Destroyed B-86 Titan 25805 | -4/Extension | Destroyed B-86 Titan 25834 | -4/Extension | Lost 7 parts (2n3u2w) 25860 | -4/Extension | Discovered exit to Research (range 3) 26039 | -4/Extension | Discovered new exit (range 16) 26040 | -4/Extension | Discovered exit to Research (range 15) 26167 | -4/Extension | Rescued a captive Derelict 26168 | -4/Extension | Rescued a captive Derelict 26426 | -4/Extension | Rescued A7 26443 | -4/Extension | Rescued a captive Derelict 26449 | -4/Extension | Build established: Scavenger-Tank 26767 | -4/Extension | Entered Cetus 26767 | -4/Cetus | Accompanied by 1 ally (A7) 26769 | -4/Cetus | Identified Vortex Rail 26772 | -4/Cetus | Acquired a Cetus Manufacturing Module code from A7 26786 | -4/Cetus | Spotted Cetus Guard 26786 | -4/Cetus | Spotted Cetus Guard 26791 | -4/Cetus | Spotted Cetus Guard 26794 | -4/Cetus | Destroyed Cetus Guard 26797 | -4/Cetus | Destroyed Cetus Guard 26797 | -4/Cetus | Spotted Cetus Guard 26800 | -4/Cetus | Destroyed Cetus Guard 26807 | -4/Cetus | Destroyed Cetus Guard 26911 | -4/Cetus | Started Cetus Manufacturing Module 26936 | -4/Cetus | Manufactured an Enhanced Grunt 26961 | -4/Cetus | Manufactured an Enhanced Grunt 26965 | -4/Cetus | Destroyed A7 26965 | -4/Cetus | Extracted ID and sensor layout for unrecognized location from A7's data core 26986 | -4/Cetus | Manufactured an Enhanced Grunt 27011 | -4/Cetus | Manufactured an Enhanced Grunt 27012 | -4/Cetus | Discovered new exit (range 15) 27036 | -4/Cetus | Manufactured an Enhanced Grunt 27042 | -4/Cetus | Spotted Cetus Guard 27042 | -4/Cetus | Spotted Cetus Guard 27045 | -4/Cetus | Spotted Cetus Guard 27053 | -4/Cetus | Destroyed Cetus Guard 27053 | -4/Cetus | Spotted Cetus Guard 27056 | -4/Cetus | Destroyed Cetus Guard 27074 | -4/Cetus | Destroyed Cetus Guard 27087 | -4/Cetus | Destroyed Cetus Guard 27111 | -4/Cetus | Found Prototype Device 27111 | -4/Cetus | Identified Exp. Thermal Shield 27126 | -4/Cetus | Discovered exit to Research (range 15) 27132 | -4/Cetus | Met Revision 17 27172 | -4/Cetus | Entered Research 27172 | -3/Research | Evolved 2 slots: Power x1, Utility x1 27173 | -3/Research | Loaded intel: 23 terminal locations 27240 | -3/Research | Found Prototype Processor 27240 | -3/Research | Identified Exp. Signal Interpreter 27247 | -3/Research | Found Exp. Signal Interpreter 27704 | -3/Research | System corruption reached 10% 28107 | -3/Research | Found Fusion Bomb Launcher 28303 | -3/Research | Discovered new exit (range 16) 28320 | -3/Research | Identified exit to Research 28325 | -3/Research | Entered another Research area 28325 | -2/Research | Warlord forces began assault on 0b10 28325 | -2/Research | Evolved 2 slots: Utility x1, Weapon x1 28655 | -2/Research | Build established: Scavenger-Mutant 28692 | -2/Research | System corruption reached 10% 28793 | -2/Research | Lost 8 parts (1p3n3u1w) 29239 | -2/Research | Spotted B-90 Cyclops 29505 | -2/Research | Lost 6 parts (1p1n2u2w) 30028 | -2/Research | Spotted B-90 Cyclops 30053 | -2/Research | Destroyed B-90 Cyclops 30328 | -2/Research | Build established: Scavenger-Gunner 30632 | -2/Research | Build established: Scavenger-Mutant 30733 | -2/Research | Discovered new exit (range 16) 30766 | -2/Research | Identified exit to Access 30912 | -2/Research | Entered Access 30912 | -1/Access | Evolved 2 slots: Utility x2 31162 | -1/Access | First assault squad dispatched 31326 | -1/Access | Build established: Scavenger-Gunner 31477 | -1/Access | System corruption reached 10% 31575 | -1/Access | Core integrity fell below 50% 31585 | -1/Access | Spotted B-99 Colossus 31588 | -1/Access | Core integrity fell below 20% 31589 | -1/Access | Destroyed by X-87 Electro with Compact HERF Cannon Last Messages --------------- 31560_ Exp. Core Analyzer destroyed. 31560_ Penetrated by Slug. 31561_ P-80 Master resets G-73 Enforcer, system corruption cleaned. 31563_ Slug penetrates U-05 Engineer. 31563_ U-05 Engineer destroyed. 31565_ Dropped Lrg. Storage Unit. 31566_ Centrium Leg destroyed. 31566_ Door malfunctions. 31575_ System corrupted: Centrium Leg rejected. 31577_ Slug penetrates Sealed Freight Elevator. 31582_ Slug penetrates Wall. 31584_ K-01 Serf cleans the Wave Collapse Detector. 31584_ Penetrated by Slug. 31587_ Slug penetrates Recycling Unit. 31588_ Penetrated by Slug. 31588_ Recycling Unit disabled. 31588_ Slammed into Y-72 Warden. 31589_ Penetrated by Slug. 31589_ Adv. Targeting Computer destroyed. 31589_ Penetrated by Slug. Map ----- +----------------------------------------------------+ | ????????????????????????????????????# /%# #? | | ????????????????????????????????????# *# #? | | ????????????????????????????????????# =# #? | | ????????????????????????????????????#% %/ #? | | ?????????????????????##############?# # #? | | ?????????????????????# ! ! #?# %# #? | | ?????????????????????# #?# # #? | | ?????????????????????# """""" #?# # #? | | ?????????????????????# """""" ### % #########? | | ?????????????????????# """""" ## "=" # = #? | | ?????????????????????#= """""" ]##! !* # #? | | ?????????????????????# """""" ]!/%! %!]+ [ #? | | ?????????????????????# !##| # #? | | ?????????????????????# g h ]## # #? | | ?????????????????????# = gg ####%###? #? | | ?????????????????????# g #?## ##??######? | | ?????????????????????# p g #?##b###???????? | | ?????????????????????#######p#########x##########? | | ????????????????????????# pg ## ] #? | | ????????????????????????# g % ## #? | | ????????????????????????# % ## #? | | ????????????????????????# xlh ## #? | | ????????????????????????# hp ^ ## = #? | | ????????????????????? ### " ## #? | | ???????????????????Y Y "" # = #? | | ??????????????????#! |###@ "Y + #? | | ??????????????????#?????# "" # #? | | ??????????????????????### "" # ] #? | | ??????????????????????#"" # #? | | ??????????????????????#"" ########## | | ??????????????????????#"" | | ??????????????????????#G | | ??????????????????????#"" | | ??????????????????????#"" | | ??????????????????????#"" | | ??????????????????????### " " | | ????????????????????????# """ """ | | ????????????????????????# """ """ | | ????????????????????????# h " " | | ????????????????????????#[== h | | ????????????????????????#/= | | ????????????????????????#/= | | ???????????????????????BB | | ???????????????????????BB | | ?????????????????????????????????? % | | ??????????????????????????????????? ! | | ????????????????????????????????????############## | | ?????????????????????????????????????????????????? | | ?????????????????????????????????????????????????? | | ?????????????????????????????????????????????????? | +----------------------------------------------------+ Best States ------------- Heat Dissipation 140 Energy Generation 65 Energy Capacity 850 Matter Stores 800 Matter Capacity 800 Sight Range 23 Robot Scan Range 16 Terrain Scan Density 10 Jamming Range 16 Base Temperature (-) 200 Armor Coverage 825 Resistance: KI 30 Resistance: EX 25 Propulsion Shielding 66 Weapon Shielding 33 Phase Shifting 15 Evasion (%) 70 Targeting Accuracy 20 Target Analysis 5 Core Analysis 8 Armor Integrity Analysis 40 Recoil Reduction 8 Item Schematics ----------------- Arc Thrower | -7/Zion | Free Flamer | -7/Zion | Free Enh. Flamer | -7/Zion | Free Plasma Flamer | -7/Zion | Free Mass Driver | -7/Zion | Archive Mak. Spear | -7/Zion | Archive Nuclear Pulse Thruster | -7/Zion | Archive Gatling Laser | -7/Zion | Archive Imp. Core Shielding | -7/Zion | Archive Mak. Laser | -7/Zion | Archive Adv. Sensor Array | -7/Zion | Archive Imp. Heavy Armor Plating | -7/Zion | Archive Great Axe | -7/Zion | Archive Imp. Kinecellerator | -7/Zion | Archive Hvy. Pick | -7/Zion | Archive Imp. Field Recycling Unit | -7/Zion | Archive Imp. Shield Generator | -7/Zion | Archive Force Field | -7/Zion | Archive HERF Cannon | -7/Zion | Archive Robot Schematics ------------------ K-01 Serf | -7/Zion | Archive G-47 Trooper | -7/Zion | Archive T-07 Excavator | -7/Zion | Archive Fabricated ------------ Imp. Kinecellerator | x1 | -5/Factory HERF Cannon | x1 | -5/Factory Alien Tech Used ----------------- Dimensional Node Initializer Achievements -------------- None Challenges ------------ None Game ------ Seed AssaultStealthCasing Manual? 0 Play Time 05:10:22 Cumulative 354.9 hours Start 2023.03.19 @ 23:44:51 End 2023.03.27 @ 00:03:44 Sessions 9 Manual Loads 0 Difficulty Rogue Special Mode None Game No. 425 Rogue 425 Adventurer 0 Explorer 0 Win Type - Total 36 Types 26/0/7/3/0/0/0/0/0 Lore% 86 Gallery% 81 Achievement% 59 Wizard Run 0 Options --------- ASCII 0 Keyboard 1 Movement Numpad Keybinds 0 Fullscreen 1 Font 24/Smallcaps Map View 76x50 Tactical HUD 1 Map Filters NONE Filters NONE Steam 1 RUN: d89d9ade-212c-4b64-8748-9a3fac0f43db